fUSD/lending_fUSD_20240625
["ID","MTS","AMOUNT","RATE_DAILY","PERIOD"]
[330351884,1719300646284,-151.0,0.00013748,2]
[330351885,1719300646293,-155.17841955,0.0001375,2]
[330351886,1719300646303,-944.49585619,0.00013787,2]
[330351887,1719300646312,-151.0,0.00013788,2]
[330351888,1719300646322,-151.0,0.00013788,2]
[330351889,1719300646331,-151.0,0.0001379,2]
[330351890,1719300646341,-151.0,0.0001379,2]
[330351891,1719300646351,-160.908181,0.0001379,2]
[330351892,1719300646360,-151.0,0.0001379,2]
[330351893,1719300646369,-151.0,0.0001379,2]
[330351894,1719300646378,-151.0,0.0001379,2]
[330351895,1719300646388,-151.0,0.0001379,2]
[330351896,1719300646400,-5079.17471344,0.0001379,2]
[330351897,1719300646408,-5079.17471335,0.0001379,2]
[330351898,1719300646418,-5079.17471335,0.0001379,2]
[330351899,1719300646427,-154.616873,0.00013799,2]
[330351900,1719300646440,-151.0,0.00013799,2]
[330351901,1719300646450,-151.0,0.00013799,2]
[330351902,1719300646460,-251.012184,0.00013799,2]
[330351903,1719300646469,-151.0,0.00013799,2]
[330351904,1719300646478,-151.0,0.00013799,2]
[330351905,1719300646487,-162.618317,0.00013799,2]
[330351906,1719300646495,-160.047597,0.00013799,2]
[330351907,1719300646504,-151.0,0.00013799,2]
[330351908,1719300646513,-160.047597,0.00013799,2]
[330351909,1719300646522,-151.0,0.00013799,2]
[330351910,1719300646531,-212.305897,0.00013799,2]
[330351911,1719300646540,-151.0,0.00013799,2]
[330351912,1719300646549,-270.527493,0.00013799,2]
[330351913,1719300646558,-151.0,0.00013799,2]
[330351914,1719300646567,-151.0,0.00013799,2]
[330351915,1719300646576,-228.291106,0.00013799,2]
[330351916,1719300646587,-654.0819,0.00013799,2]
[330351917,1719300646596,-151.0,0.00013799,2]
[330351918,1719300646605,-654.0819,0.00013799,2]
[330351919,1719300646615,-151.0,0.00013799,2]
[330351920,1719300646625,-262.922795,0.00013799,2]
[330351921,1719300646634,-151.0,0.00013799,2]
[330351922,1719300646648,-176.837712,0.00013799,2]
[330351923,1719300646658,-176.837712,0.00013799,2]
[330351924,1719300646667,-1059.014874,0.00013799,2]
[330351925,1719300646676,-1059.014874,0.00013799,2]
[330351926,1719300646685,-6644.03033196,0.00013799,2]
[330351927,1719300646694,-6644.03033195,0.00013799,2]
[330351928,1719300646704,-6644.03033195,0.00013799,2]
[330351929,1719300646714,-900.0,0.000138,5]
[330351930,1719300646723,-151.0,0.00013808,2]
[330351931,1719300646733,-151.0,0.00013808,2]
[330351932,1719300646742,-151.0,0.00013808,2]
[330351933,1719300646751,-1206.9525,0.0001383,2]
[330351934,1719300646761,-201.17402604,0.00013849,2]
[330351935,1719300646770,-162754.01098244,0.0001387,2]
[330351936,1719300646780,-169.407303,0.0001387,2]
[330351937,1719300646790,-151.0,0.0001387,2]
[330351938,1719300646803,-151.0,0.0001387,2]
[330351939,1719300646813,-154.555716,0.0001387,2]
[330351940,1719300646822,-256.206545,0.0001387,2]
[330351941,1719300646832,-154.580471,0.0001387,2]
[330351942,1719300646842,-210.911241,0.0001387,2]
[330351943,1719300646851,-151.0,0.0001387,2]
[330351944,1719300646861,-151.0,0.0001387,2]
[330351945,1719300646870,-160.047597,0.0001387,2]
[330351946,1719300646881,-151.0,0.0001387,2]
[330351947,1719300646895,-160.047597,0.0001387,2]
[330351948,1719300646905,-151.0,0.0001387,2]
[330351949,1719300646914,-151.0,0.0001387,2]
[330351950,1719300646923,-151.0,0.0001387,2]
[330351951,1719300646933,-151.0,0.0001387,2]
[330351952,1719300646942,-654.0819,0.0001387,2]
[330351953,1719300646951,-151.0,0.0001387,2]
[330351954,1719300646961,-654.0819,0.0001387,2]
[330351955,1719300646970,-151.0,0.0001387,2]
[330351956,1719300646980,-151.0,0.0001387,2]
[330351957,1719300646990,-176.837712,0.0001387,2]
[330351958,1719300646999,-176.837712,0.0001387,2]
[330351959,1719300647009,-1059.014874,0.0001387,2]
[330351960,1719300647019,-1059.014874,0.0001387,2]
[330351961,1719300647030,-500.0,0.00013887,2]
[330351962,1719300647039,-200.0,0.00013887,2]
[330351963,1719300647050,-500.0,0.00013888,2]
[330351964,1719300647060,-500.0,0.00013888,2]
[330351965,1719300647070,-200.0,0.00013888,2]
[330351966,1719300647080,-151.0,0.00013899,2]
[330351967,1719300647089,-191.12905937,0.000139,2]
[330351968,1719300647098,-179.81821662,0.000139,2]
[330351969,1719300647107,-382.75834789,0.000139,2]
[330351970,1719300647116,-193.88511967,0.000139,2]
[330351971,1719300647126,-1300.0,0.000139,5]
[330351972,1719300647135,-302.07914663,0.000139,2]
[330351973,1719300647148,-12100.78152316,0.000139,2]
[330351974,1719300647157,-1000.0,0.00013903,2]
[330351975,1719300647166,-2039.83634166,0.00013919,2]
[330351976,1719300647175,-1000.0,0.00013929,2]
[330351977,1719300647184,-1000.0,0.00013929,2]
[330351978,1719300647193,-1000.0,0.00013929,2]
[330351979,1719300647202,-1000.0,0.00013929,2]
[330351980,1719300647212,-1000.0,0.00013929,2]
[330351981,1719300647222,-1000.0,0.00013929,2]
[330351982,1719300647231,-1000.0,0.00013929,2]
[330351983,1719300647240,-1000.0,0.00013929,2]
[330351984,1719300647250,-1000.0,0.00013929,2]
[330351985,1719300647259,-1000.0,0.00013929,2]
[330351986,1719300647269,-1000.0,0.00013929,2]
[330351987,1719300647280,-1000.0,0.00013929,2]
[330351988,1719300647289,-1000.0,0.00013929,2]
[330351989,1719300647298,-1000.0,0.00013929,2]
[330351990,1719300647307,-1000.0,0.00013929,2]
[330351991,1719300647316,-1000.0,0.00013929,2]
[330351992,1719300647325,-1000.0,0.00013929,2]
[330351993,1719300647335,-1000.0,0.00013929,2]
[330351994,1719300647344,-1000.0,0.00013929,2]
[330351995,1719300647355,-1000.0,0.00013929,2]
[330351996,1719300647365,-1000.0,0.00013929,2]
[330351997,1719300647374,-1000.0,0.00013929,2]
[330351998,1719300647383,-1000.0,0.00013929,2]
[330351999,1719300647393,-1000.0,0.00013929,2]
[330352000,1719300647403,-1000.0,0.00013929,2]
[330352001,1719300647413,-1000.0,0.00013929,2]
[330352002,1719300647422,-1000.0,0.00013929,2]
[330352003,1719300647431,-1000.0,0.00013929,2]
[330352004,1719300647440,-1000.0,0.00013929,2]
[330352005,1719300647450,-1000.0,0.00013929,2]
[330352006,1719300647459,-398.1794,0.00013929,2]
[330352007,1719300647469,-500.0,0.00013929,2]
[330352008,1719300647478,-500.0,0.00013929,2]
[330352009,1719300647487,-500.0,0.00013929,2]
[330352010,1719300647497,-151.0,0.0001393,2]
[330352011,1719300647506,-151.0,0.0001393,2]
[330352012,1719300647515,-151.0,0.0001393,2]
[330352013,1719300647524,-151.0,0.0001393,2]
[330352014,1719300647539,-151.0,0.0001393,2]
[330352015,1719300647548,-151.0,0.0001393,2]
[330352016,1719300647558,-160.047597,0.0001393,2]
[330352017,1719300647567,-160.047597,0.0001393,2]
[330352018,1719300647577,-151.0,0.0001393,2]
[330352019,1719300647586,-151.0,0.0001393,2]
[330352020,1719300647596,-160.047597,0.0001393,2]
[330352021,1719300647605,-160.047597,0.0001393,2]
[330352022,1719300647614,-151.0,0.0001393,2]
[330352023,1719300647624,-151.0,0.0001393,2]
[330352024,1719300647633,-151.0,0.0001393,2]
[330352025,1719300647644,-151.0,0.0001393,2]
[330352026,1719300647653,-151.0,0.0001393,2]
[330352027,1719300647663,-151.0,0.0001393,2]
[330352028,1719300647672,-654.0819,0.0001393,2]
[330352029,1719300647685,-654.0819,0.0001393,2]
[330352030,1719300647695,-151.0,0.0001393,2]
[330352031,1719300647705,-654.0819,0.0001393,2]
[330352032,1719300647715,-159.318252,0.0001393,2]
[330352033,1719300647725,-654.0819,0.0001393,2]
[330352035,1719300647735,-151.0,0.0001393,2]
[330352036,1719300647744,-151.0,0.0001393,2]
[330352037,1719300647754,-154.551951,0.0001393,2]
[330352038,1719300647763,-176.837712,0.0001393,2]
[330352039,1719300647773,-176.837712,0.0001393,2]
[330352040,1719300647782,-176.837712,0.0001393,2]
[330352041,1719300647792,-176.837712,0.0001393,2]
[330352042,1719300647807,-1059.014874,0.0001393,2]
[330352043,1719300647815,-1059.014874,0.0001393,2]
[330352044,1719300647825,-1059.014874,0.0001393,2]
[330352045,1719300647835,-1059.014874,0.0001393,2]
[330352046,1719300647845,-237.19,0.00013953,2]
[330352047,1719300647855,-2877.8656224,0.00013989,2]
[330352048,1719300647864,-201.17402604,0.0001399,2]
[330352049,1719300647873,-289.725,0.00013992,2]
[330352050,1719300647884,-151.0,0.00013992,2]
[330352051,1719300647895,-151.0,0.00013992,2]
[330352052,1719300647904,-6151.09,0.00013992,2]
[330352053,1719300647914,-365744.08677073,0.00014,2]
[330352054,1719300647923,-325646.54521399,0.00014,2]
[330352055,1719300648841,-3341.07034684,0.00014,2]
[330352056,1719300648853,-340.90310921,0.00014,2]
[330352057,1719300648866,-684.85547295,0.00014,2]
[330352058,1719300648995,-500.0,0.00013929,2]
[330352059,1719300649004,-877.53454,0.00014,2]
[330352061,1719300835004,897.06,8.907e-05,2]
[330352063,1719301626281,156.40230787,0.00010169,2]
[330352064,1719301633648,887.81042537,0.00010169,2]
[330352065,1719301802146,152.55654538,0.00010169,2]
[330352084,1719301831820,-690.28734422,0.00010227,2]
[330352085,1719301831836,-155.361731,0.00010271,2]
[330352086,1719301831851,-758.81374083,0.00010272,2]
[330352087,1719301831865,-852.2,0.00010423,2]
[330352088,1719301831881,-300.0,0.00010444,2]
[330352089,1719301831896,-95071.68743416,0.00010445,2]
[330352090,1719301831916,-1062.45142934,0.00010445,2]
[330352091,1719301831935,-100673.67173887,0.00010445,2]
[330352092,1719301831988,-672.13202934,0.00010445,2]
[330352093,1719301832007,-715.99630607,0.00010445,2]
[330352094,1719301832026,-1555.0000014,0.00010445,2]
[330352095,1719301832057,-293.43812873,0.00010445,2]
[330352097,1719301832075,-5136.10633996,0.00010445,2]
[330352100,1719301832093,-3300.0,0.00010445,2]
[330352106,1719301832141,-3932.12964903,0.00010445,2]
[330352118,1719301837762,-580.4,0.0001043,2]
[330352123,1719301837818,-600.0,0.0001043,2]
[330352129,1719301837875,-2603.10643675,0.0001043,2]
[330352131,1719301837887,-3210.79791008,0.0001043,2]
[330352134,1719301837933,-3813.73549989,0.0001043,2]
[330352135,1719301837990,-536875.95663612,0.0001043,2]
[330352136,1719301837999,-2004.4104095,0.00010445,2]
[330352137,1719301838008,-150.0,0.00010493,2]
[330352138,1719301838018,-150.0,0.00010795,2]
[330352139,1719301838028,-158.12,0.00010825,2]
[330352140,1719301838038,-1000.0,0.00010825,2]
[330352141,1719301838047,-499.99,0.00010825,2]
[330352142,1719301838057,-853.08,0.00010959,2]
[330352143,1719301838066,-1662.71,0.00010959,2]
[330352144,1719301838076,-386.77652916,0.00010973,2]
[330352145,1719301838086,-250.0,0.00011564,2]
[330352146,1719301838095,-250.0,0.00011804,2]
[330352147,1719301838105,-210.0,0.00011875,2]
[330352148,1719301838116,-208.2521774,0.00012148,2]
[330352149,1719301838126,-1000.0,0.00012178,2]
[330352150,1719301838135,-176.45216287,0.00012326,2]
[330352151,1719301838144,-23900.0,0.00012502,2]
[330352152,1719301838153,-852.2,0.00012687,2]
[330352153,1719301838163,-3439.57,0.00012813,2]
[330352154,1719301838172,-193.67,0.00012898,2]
[330352155,1719301838187,-1295.21411692,0.000129,2]
[330352156,1719301838197,-293.0,0.00013062,2]
[330352157,1719301838207,-987.521,0.00013346,2]
[330352158,1719301838216,-1000.0,0.00013531,2]
[330352159,1719301838227,-158.12,0.00013531,2]
[330352160,1719301838236,-1024.0,0.000136,2]
[330352161,1719301838246,-161.63425311,0.00013689,2]
[330352162,1719301838255,-11092.38306286,0.00013689,2]
[330352163,1719301838267,-256.01,0.00013699,2]
[330352164,1719301838276,-295.34,0.00013699,2]
[330352165,1719301838285,-300.0,0.000137,5]
[330352166,1719301838295,-741.73525277,0.00013719,2]
[330352167,1719301838304,-542.75588998,0.00013734,2]
[330352168,1719301838314,-692738.18346247,0.00013744,2]
[330352169,1719301838323,-3688.54002219,0.0001379,2]
[330352170,1719301838332,-26557.6576,0.00013799,2]
[330352171,1719301838342,-4650.82123241,0.00013799,2]
[330352172,1719301838351,-4650.82123236,0.00013799,2]
[330352173,1719301838363,-905.4644,0.000138,2]
[330352174,1719301838372,-10994.0339,0.000138,2]
[330352175,1719301838381,-163.82490804,0.000138,2]
[330352177,1719301838391,-7500.0,0.000138,2]
[330352178,1719301838403,-600.0,0.000138,5]
[330352180,1719301838413,-341.11958025,0.000138,2]
[330352181,1719301838423,-168.75,0.00013839,2]
[330352182,1719301838432,-384.09870792,0.00013844,2]
[330352183,1719301838442,-164.95292,0.0001386,2]
[330352184,1719301838451,-500.0,0.00013887,2]
[330352185,1719301838461,-500.0,0.00013888,2]
[330352186,1719301838470,-500.0,0.00013888,2]
[330352187,1719301838479,-200.0,0.00013888,2]
[330352188,1719301838489,-2988.04559274,0.00013889,2]
[330352189,1719301838500,-274.5159,0.0001389,2]
[330352190,1719301838510,-5938.28486465,0.000139,2]
[330352191,1719301838520,-198.8676,0.000139,2]
[330352192,1719301838530,-780.4038,0.000139,2]
[330352193,1719301838539,-39428.3007,0.000139,2]
[330352194,1719301838549,-100000.0,0.000139,2]
[330352195,1719301838558,-200918.75355759,0.000139,2]
[330352196,1719301838571,-1592.53420064,0.000139,2]
[330352197,1719301838595,-399.4276082,0.000139,2]
[330352239,1719301840922,-8722.28913357,0.000139,2]
[330352240,1719301840932,-900.0,0.000139,5]
[330352241,1719301840941,-200.92918962,0.000139,2]
[330352242,1719301840951,-151.0,0.000139,2]
[330352243,1719301840961,-333.824953,0.000139,2]
[330352244,1719301840970,-230.510216,0.000139,2]
[330352245,1719301840980,-333.824953,0.000139,2]
[330352246,1719301840990,-230.510216,0.000139,2]
[330352247,1719301840999,-2516.46179393,0.000139,2]
[330352248,1719301841008,-151.0,0.000139,2]
[330352249,1719301841018,-151.0,0.000139,2]
[330352250,1719301841028,-532.309,0.0001393,2]
[330352251,1719301841038,-415.49090939,0.00013955,2]
[330352252,1719301841047,-542.75588998,0.00013979,2]
[330352253,1719301841056,-1066.1268326,0.00013989,5]
[330352254,1719301841066,-151.0,0.00013989,2]
[330352255,1719301841075,-151.0,0.00013989,2]
[330352256,1719301841085,-154.636986,0.00013989,2]
[330352257,1719301841094,-185.898797,0.00013989,2]
[330352258,1719301841103,-79370.65516667,0.00013989,2]
[330352259,1719301841145,-2710.57781961,0.00013989,2]
[330352264,1719301842841,-30472.0,0.00013989,2]
[330352265,1719301843107,-12797.03686972,0.00013989,2]
[330352266,1719301843124,-178.416918,0.00013989,2]
[330352267,1719301843135,-151.0,0.00013989,2]
[330352268,1719301843145,-5845.7581238,0.00013989,2]
[330352269,1719301843154,-151.0,0.00013989,2]
[330352270,1719301843164,-151.0,0.00013989,2]
[330352271,1719301843174,-151.0,0.00013989,2]
[330352272,1719301843191,-6852.5987317,0.00013989,2]
[330352273,1719301843201,-754.6896767,0.00013989,2]
[330352274,1719301843210,-2669.9954652,0.00013989,2]
[330352275,1719301843219,-157.022995,0.00013989,2]
[330352276,1719301843230,-151.0,0.00013989,2]
[330352277,1719301843239,-151.0,0.00013989,2]
[330352278,1719301843248,-151.0,0.00013989,2]
[330352279,1719301843257,-151.0,0.00013989,2]
[330352280,1719301843268,-333.824953,0.00013989,2]
[330352281,1719301843278,-230.510216,0.00013989,2]
[330352282,1719301843287,-333.824953,0.00013989,2]
[330352283,1719301843296,-230.510216,0.00013989,2]
[330352284,1719301843305,-151.0,0.00013989,2]
[330352285,1719301843314,-209.15905144,0.00013999,2]
[330352286,1719301843324,-1970.01503513,0.00013999,2]
[330352287,1719301843334,-471234.79781567,0.00014,2]
[330352288,1719301843350,-325.961526,0.00014,2]
[330352364,1719301846224,-2500.0,0.00012358,2]
[330352366,1719301846233,-6597.3712382,0.00014,2]
[330352381,1719301846366,-890.71202452,0.00014,2]
[330352383,1719301846383,-7046.9374042,0.00014,2]
[330352386,1719301846394,-792.73224283,0.00014,2]
[330352393,1719301846451,-2000.0,0.00014,2]
[330352399,1719301846500,-609.0156,0.00014,2]
[330352423,1719302429989,-919.86502131,0.00025,30]
[330352424,1719302430024,-667.77792935,0.00025,30]
[330352425,1719302430064,-1270.90182978,0.000269,30]
[330352426,1719302430100,-327.64634469,0.00027,120]
[330352427,1719302430133,-292.53504839,0.0002739,30]
[330352428,1719302430176,-200.0,0.00027397,60]
[330352429,1719302430213,-1550.77409293,0.00028,30]
[330352430,1719302430247,-150.0,0.00028738,120]
[330352431,1719302430280,-1180.85779454,0.00028767,90]
[330352432,1719302430314,-150.0,0.00028879,120]
[330352433,1719302430349,-500.0,0.00029,120]
[330352434,1719302430382,-900.0,0.00029,30]
[330352435,1719302430414,-1799.99999908,0.00029,30]
[330352436,1719302430455,-1208.0,0.00029579,30]
[330352437,1719302430489,-150.0,0.00029617,120]
[330352438,1719302430526,-1191.72609757,0.0002988,30]
[330352439,1719302430578,-1146.44684562,0.00029999,30]
[330352440,1719302430612,-418.66907053,0.0003,30]
[330352442,1719302430643,-500.0,0.0003,120]
[330352443,1719302430908,-1404.49121719,0.0003,60]
[330352444,1719302430943,-500.0,0.0003,120]
[330352445,1719302430978,-1000.0,0.0003,120]
[330352446,1719302431011,-500.0,0.0003,60]
[330352447,1719302431043,-329.08722432,0.0003,30]
[330352448,1719302431077,-150.0,0.00030119,120]
[330352449,1719302431109,-200.0,0.00030137,60]
[330352450,1719302431142,-150.0,0.00030145,120]
[330352451,1719302431178,-250.0,0.000308,30]
[330352452,1719302431211,-500.0,0.00031,120]
[330352453,1719302431245,-150.0,0.00031156,120]
[330352454,1719302431278,-150.0,0.00031221,120]
[330352455,1719302431311,-150.0,0.00031234,120]
[330352456,1719302431344,-150.0,0.00031259,120]
[330352457,1719302431377,-150.0,0.00031354,120]
[330352458,1719302431410,-150.0,0.00031371,120]
[330352459,1719302431452,-150.0,0.00031954,120]
[330352460,1719302431488,-500.0,0.00032,120]
[330352461,1719302431530,-465.0,0.00032,120]
[330352462,1719302431563,-2659.5,0.00032,120]
[330352463,1719302431599,-150.0,0.0003208,120]
[330352464,1719302431633,-262.31871861,0.00032393,40]
[330352465,1719302431669,-156.36,0.000327,31]
[330352466,1719302431703,-156.36,0.000327,31]
[330352467,1719302431737,-156.36,0.000327,31]
[330352468,1719302431772,-156.36,0.000327,31]
[330352469,1719302431806,-156.36,0.000327,31]
[330352470,1719302431840,-156.36,0.000327,31]
[330352471,1719302431873,-150.0,0.00032769,120]
[330352472,1719302431907,-535.72546164,0.00032876,30]
[330352473,1719302431942,-200.0,0.00032877,60]
[330352474,1719302431977,-269.81,0.00032877,30]
[330352497,1719302564695,157.43,9.93e-05,2]
[330352505,1719302621238,263.33267476,9.93e-05,2]
[330352506,1719302621587,20306.1811559,9.93e-05,2]
[330352507,1719302624283,248.80515963,9.93e-05,2]
[330352509,1719302627124,290.37415106,9.93e-05,2]
[330352528,1719302713503,20306.1811559,9.93e-05,2]
[330352529,1719302717411,263.33267476,9.93e-05,2]
[330352531,1719302723562,290.37415106,9.93e-05,2]
[330352542,1719302800284,20306.1811559,9.93e-05,2]
[330352544,1719302808187,263.33267476,9.93e-05,2]
[330352548,1719302827962,300.0,0.0001,3]
[330352549,1719302830091,290.11654211,9.93e-05,2]
[330352561,1719302875081,7682.27041342,9.93e-05,2]
[330352564,1719302887564,-304.98751847,0.0001033,2]
[330352565,1719302887601,-150.0,0.00010429,2]
[330352566,1719302887630,-300.0,0.00010429,2]
[330352567,1719302887655,-304.98751847,0.0001043,2]
[330352568,1719302887666,-150.0,0.0001043,2]
[330352569,1719302887686,-300.0,0.0001043,2]
[330352570,1719302887696,-97347.02496306,0.0001043,2]
[330352573,1719302905715,263.44352988,9.93e-05,2]
[330352584,1719302936927,-449581.98400131,0.0001043,2]
[330352585,1719302936948,-515418.88053452,0.0001043,2]
[330352586,1719302936970,-766.98,0.00010447,2]
[330352587,1719302936991,-163.82490802,0.00010859,2]
[330352588,1719302937013,-426.52,0.00010959,2]
[330352591,1719302953009,-4455.21626006,0.00011097,2]
[330352592,1719302953030,-520.06850352,0.00011917,2]
[330352594,1719302960382,39962.64489344,0.00026,120]
[330352595,1719302961702,-150.0,0.00012029,2]
[330352596,1719302961722,-5595.11813478,0.0001203,2]
[330352597,1719302961742,-232.76677252,0.0001203,2]
[330352598,1719302961764,-475.16082276,0.0001203,2]
[330352599,1719302961785,-753.48832543,0.00012036,2]
[330352600,1719302961808,-1133.92751376,0.00012036,2]
[330352601,1719302961831,-217.87188322,0.00012036,2]
[330352602,1719302961852,-155.31168905,0.00012036,2]
[330352603,1719302961873,-346.07679139,0.00012036,2]
[330352604,1719302961894,-155.91155511,0.00012036,2]
[330352605,1719302961913,-155.0,0.00012036,2]
[330352606,1719302961934,-545.37650781,0.00012036,2]
[330352607,1719302961954,-964.94658508,0.00012036,2]
[330352608,1719302961974,-2677.37149884,0.00012036,2]
[330352609,1719302961993,-1272.65556267,0.00012036,2]
[330352610,1719302962013,-660.33561149,0.00012036,2]
[330352611,1719302962033,-3106.94505996,0.00012036,2]
[330352612,1719302962055,-272.8956642,0.00012108,2]
[330352613,1719302962076,-250.0,0.00012157,2]
[330352614,1719302962095,-561.0,0.00012165,2]
[330352615,1719302962117,-23900.0,0.00012165,2]
[330352616,1719302962137,-269.25924368,0.00012208,2]
[330352617,1719302962158,-1937.04,0.00012209,2]
[330352618,1719302962179,-500.0,0.00012244,3]
[330352619,1719302962201,-158.12,0.00012496,2]
[330352620,1719302964224,387.38,0.0001244,2]
[330352628,1719302975286,-499.99,0.00012505,2]
[330352629,1719302975306,-942.35,0.00012525,2]
[330352630,1719302975327,-766.98,0.00012711,2]
[330352631,1719302975350,-250.0,0.00012812,2]
[330352632,1719302975371,-1133.31235227,0.000129,2]
[330352633,1719302975393,-1133.31235225,0.000129,2]
[330352634,1719302977106,5595.11813478,0.00011872,2]
[330352636,1719302988938,4455.21626006,0.00012036,2]
[330352638,1719302997399,547683.99648284,0.00012036,2]
[330352639,1719302998778,442.59054747,0.00012036,2]
[330352642,1719303011709,492.77462976,0.00012036,2]
[330352644,1719303024758,-543.3375049,0.00013078,2]
[330352645,1719303024782,-543.33750489,0.00013078,2]
[330352646,1719303024804,-1000.0,0.00013186,2]
[330352647,1719303024826,-210.0,0.00013232,2]
[330352648,1719303024847,-163.82490802,0.00013265,2]
[330352662,1719303031938,-6079.2,0.00013647,2]
[330352663,1719303031949,-236.27,0.00013699,2]
[330352664,1719303031959,-256.01,0.00013699,2]
[330352665,1719303031968,-157.46505261,0.00013719,2]
[330352666,1719303031981,-213.40257377,0.00013719,2]
[330352667,1719303031990,-152.03968282,0.00013788,2]
[330352668,1719303032003,-3054.54400321,0.00013788,2]
[330352669,1719303032045,-4462.52367967,0.00013788,2]
[330352670,1719303032058,-404.0000001,0.00013788,2]
[330352671,1719303032069,-326.34,0.00013788,2]
[330352672,1719303032080,-420.0,0.00013788,2]
[330352673,1719303032092,-1768.47672408,0.00013788,2]
[330352674,1719303032113,-325.09234905,0.00013788,2]
[330352675,1719303032124,-668.67252113,0.00013788,2]
[330352676,1719303032144,-9109.98551208,0.00013788,2]
[330352677,1719303032155,-1094.6407865,0.00013788,2]
[330352678,1719303032166,-609.96249,0.00013788,2]
[330352679,1719303032178,-2269.92688606,0.00013788,2]
[330352680,1719303032190,-28610.19392973,0.00013788,2]
[330352681,1719303032199,-4293.00769312,0.00013799,2]
[330352682,1719303032208,-4293.00769312,0.00013799,2]
[330352683,1719303032218,-4293.00769312,0.00013799,2]
[330352684,1719303032227,-2376.06489013,0.000138,2]
[330352685,1719303032237,-250.0,0.00013824,2]
[330352686,1719303032247,-600.0,0.000139,5]
[330352687,1719303032257,-1133.31235225,0.00013919,2]
[330352688,1719303032266,-1313.34335675,0.00013999,2]
[330352689,1719303032276,-28006.57275591,0.00014,2]
[330352690,1719303032287,-174677.45296218,0.00014,2]
[330352691,1719303032297,-500.0,0.00014,2]
[330352692,1719303032308,-836.0,0.00014,2]
[330352693,1719303032317,-200.0,0.00014,2]
[330352694,1719303032327,-164.95293,0.00014,2]
[330352695,1719303032338,-169.22,0.00014133,2]
[330352696,1719303032348,-1702.76,0.00014356,2]
[330352697,1719303032360,-853.06,0.00014356,2]
[330352699,1719303032369,-424.88,0.00014356,2]
[330352701,1719303032378,-236.27,0.00014384,2]
[330352703,1719303032387,-7437.12370252,0.000145,2]
[330352705,1719303032396,-4293.00769312,0.00014517,2]
[330352707,1719303032406,-11092.38306281,0.00014525,2]
[330352708,1719303032416,-293.0,0.00014555,2]
[330352709,1719303032425,-5595.11813478,0.00014589,2]
[330352710,1719303032436,-475.04909202,0.00014589,2]
[330352711,1719303032445,-206.28187956,0.00014589,2]
[330352712,1719303032455,-4452.57109984,0.00014589,2]
[330352713,1719303032464,-527.74,0.00014767,2]
[330352714,1719303032475,-272.89566417,0.00014804,2]
[330352715,1719303032484,-1000.0,0.00014834,2]
[330352716,1719303032494,-900.0,0.000149,5]
[330352717,1719303032504,-327.18357988,0.000149,2]
[330352718,1719303032514,-766.98,0.00014975,2]
[330352719,1719303032523,-180.91862999,0.0001499,2]
[330352720,1719303032533,-5000.0,0.00015,2]
[330352721,1719303032544,-414771.83884947,0.00015,2]
[330352722,1719303032566,-1586.5594271,0.00015,2]
[330352723,1719303032590,-51852.3410743,0.00015,2]
[330352724,1719303032603,-4782.84240991,0.00015,2]
[330352725,1719303032631,-1325.8073129,0.00015,2]
[330352726,1719303032644,-919.32000046,0.00015,2]
[330352727,1719303032656,-630.85,0.00015,2]
[330352728,1719303032668,-2109.43741355,0.00015,2]
[330352729,1719303032682,-2019.43673493,0.00015,2]
[330352730,1719303032692,-154.22884196,0.00015,2]
[330352731,1719303032703,-517.9614323,0.00015,2]